{"text_format":"1","workbook":"xlsx","n_sheets":2,"sheets":["2018","2019"],"not_rendered":{"charts":0,"images":0,"macros":0,"external_links":0,"defined_names":2,"comments":0,"pivot_tables":0},"unopened":[],"bounds":{"document_bytes":16777216,"sheet_cells":100000,"rows_first":2000,"rows_last":500,"rows_between":2000,"halvings":0,"cell_chars":16384,"cell_head_chars":4096},"cells_cut":0,"cells_raw":0,"read":"whole","date_system":"1900"}

{"sheet":"2018","index":0,"n_rows":163,"n_cols":14,"rows_kept":163,"cut":false,"hidden":false,"merged":[[149,11,149,12],[1,2,1,10],[1,13,1,15],[2,2,3,2],[2,3,2,4],[2,5,3,5],[2,6,3,6],[2,7,3,7],[2,8,3,8],[2,9,3,9],[2,10,3,10]]}
[]
[null,null,"BOOKING",null,null,null,null,null,null,null,null,0.85,0.4,"Haute saison du 10/06 au 09/09/2018"]
[null,null,"Nom","Dates",null,"Nbre de personnes","Nbre de NUITEES","Chambre","Prix Booking","REMUNERATION","DATE MAXI VIREMENT"]
[null,null,null,"Arrivée","Départ"]
[null,null,null,null,null,null,null,null,null,{"$f":"(I5*$L$2)","v":0},{"$f":"IF(E5=\"\",\"\",IF(MONTH(E5)=12,DATE(YEAR(E5)+1,1,15),DATE(YEAR(E5),MONTH(E5)+1,15)))","v":""}]
[null,null,null,null,null,null,null,null,null,0,{"$f":"IF(E6=\"\",\"\",IF(MONTH(E6)=12,DATE(YEAR(E6)+1,1,15),DATE(YEAR(E6),MONTH(E6)+1,15)))","v":""}]
[null,null,null,null,null,null,null,null,null,0,""]
[null,null,null,null,null,null,null,null,null,0,""]
[null,null,null,null,null,null,null,null,null,0,""]
[null,null,null,null,null,null,null,null,null,0,""]
[null,null,null,null,null,null,null,null,null,0,""]
[null,null,null,null,null,null,null,null,null,0,""]
[null,null,null,null,null,null,null,null,null,0,""]
[null,null,null,null,null,null,null,null,null,0,""]
[null,null,null,null,null,null,null,null,null,0,""]
[null,null,null,null,null,null,null,null,null,0,""]
[null,null,null,null,null,null,null,null,null,0,""]
[null,null,null,null,null,null,null,null,null,0,""]
[null,null,null,null,null,null,null,null,null,0,""]
[null,null,null,null,null,null,null,null,null,0,""]
[null,null,null,null,null,null,null,null,null,0,""]
[null,null,null,null,null,null,null,null,null,0,""]
[null,null,null,null,null,null,null,null,null,0,""]
[null,null,null,null,null,null,null,null,null,0,""]
[null,null,null,null,null,null,null,null,null,0,""]
[null,null,null,null,null,null,null,null,null,0,""]
[null,null,null,null,null,null,null,null,null,0,""]
[null,null,null,null,null,null,null,null,null,0,""]
[null,null,null,null,null,null,null,null,null,0,""]
[null,null,null,null,null,null,null,null,null,0,""]
[null,null,null,null,null,null,null,null,null,0,""]
[null,null,null,null,null,null,null,null,null,0,""]
[null,null,null,null,null,null,null,null,null,0,""]
[null,null,null,null,null,null,null,null,null,0,""]
[null,null,null,null,null,null,null,null,null,0,""]
[null,null,null,null,null,null,null,null,null,0,""]
[null,null,null,null,null,null,null,null,null,{"$f":"(I37*$L$2)","v":0},""]
[null,null,null,null,null,null,null,null,null,0,""]
[null,null,null,null,null,null,null,null,null,0,""]
[null,null,null,null,null,null,null,null,null,0,""]
[null,null,null,null,null,null,null,null,null,0,""]
[null,null,null,null,null,null,null,null,null,0,""]
[null,null,null,null,null,null,null,null,null,0,""]
[null,null,null,null,null,null,null,null,null,0,""]
[null,null,null,null,null,null,null,null,null,0,""]
[null,null,null,null,null,null,null,null,null,0,""]
[null,null,null,null,null,null,null,null,null,0,""]
[null,null,null,null,null,null,null,null,null,0,""]
[null,null,null,null,null,null,null,null,null,0,""]
[null,null,null,null,null,null,null,null,null,0,""]
[null,null,null,null,null,null,null,null,null,0,""]
[null,null,null,null,null,null,null,null,null,0,""]
[null,null,null,null,null,null,null,null,null,0,""]
[null,null,null,null,null,null,null,null,null,0,""]
[null,null,null,null,null,null,null,null,null,0,""]
[null,null,null,null,null,null,null,null,null,0,""]
[null,null,null,null,null,null,null,null,null,0,""]
[null,null,null,null,null,null,null,null,null,0,""]
[null,null,null,null,null,null,null,null,null,0,""]
[null,null,null,null,null,null,null,null,null,0,""]
[null,null,null,null,null,null,null,null,null,0,""]
[null,null,null,null,null,null,null,null,null,0,""]
[null,null,null,null,null,null,null,null,null,0,""]
[null,null,null,null,null,null,null,null,null,0,""]
[null,null,null,null,null,null,null,null,null,0,""]
[null,null,null,null,null,null,null,null,null,0,""]
[null,null,null,null,null,null,null,null,null,0,""]
[null,null,null,null,null,null,null,null,null,0,""]
[null,null,null,null,null,null,null,null,null,{"$f":"(I69*$L$2)","v":0},""]
[null,null,null,null,null,null,null,null,null,0,{"$f":"IF(E70=\"\",\"\",IF(MONTH(E70)=12,DATE(YEAR(E70)+1,1,15),DATE(YEAR(E70),MONTH(E70)+1,15)))","v":""}]
[null,null,null,null,null,null,null,null,null,0,""]
[null,null,null,null,null,null,null,null,null,0,""]
[null,null,null,null,null,null,null,null,null,0,""]
[null,null,null,null,null,null,null,null,null,0,""]
[null,null,null,null,null,null,null,null,null,0,""]
[null,null,null,null,null,null,null,null,null,0,""]
[null,null,null,null,null,null,null,null,null,0,""]
[null,null,null,null,null,null,null,null,null,0,""]
[null,null,null,null,null,null,null,null,null,0,""]
[null,null,null,null,null,null,null,null,null,0,""]
[null,null,null,null,null,null,null,null,null,0,""]
[null,null,null,null,null,null,null,null,null,0,""]
[null,null,null,null,null,null,null,null,null,0,""]
[null,null,null,null,null,null,null,null,null,0,""]
[null,null,null,null,null,null,null,null,null,0,""]
[null,null,null,null,null,null,null,null,null,0,""]
[null,null,null,null,null,null,null,null,null,0,""]
[null,null,null,null,null,null,null,null,null,0,""]
[null,null,null,null,null,null,null,null,null,0,""]
[null,null,null,null,null,null,null,null,null,0,""]
[null,null,null,null,null,null,null,null,null,0,""]
[null,null,null,null,null,null,null,null,null,0,""]
[null,null,null,null,null,null,null,null,null,0,""]
[null,null,null,null,null,null,null,null,null,0,""]
[null,null,null,null,null,null,null,null,null,0,""]
[null,null,null,null,null,null,null,null,null,0,""]
[null,null,null,null,null,null,null,null,null,0,""]
[null,null,null,null,null,null,null,null,null,0,""]
[null,null,null,null,null,null,null,null,null,0,""]
[null,null,null,null,null,null,null,null,null,0,""]
[null,null,null,null,null,null,null,null,null,{"$f":"(I101*$L$2)","v":0},""]
[null,null,null,null,null,null,null,null,null,0,""]
[null,null,null,null,null,null,null,null,null,0,""]
[null,null,null,null,null,null,null,null,null,0,""]
[null,null,null,null,null,null,null,null,null,0,""]
[null,null,null,null,null,null,null,null,null,0,""]
[null,null,null,null,null,null,null,null,null,0,""]
[null,null,null,null,null,null,null,null,null,0,""]
[null,null,null,null,null,null,null,null,null,0,""]
[null,null,null,null,null,null,null,null,null,0,""]
[null,null,null,null,null,null,null,null,null,0,""]
[null,null,null,null,null,null,null,null,null,0,""]
[null,null,null,null,null,null,null,null,null,0,""]
[null,null,null,null,null,null,null,null,null,0,""]
[null,null,null,null,null,null,null,null,null,0,""]
[null,null,null,null,null,null,null,null,null,0,""]
[null,null,null,null,null,null,null,null,null,0,""]
[null,null,null,null,null,null,null,null,null,0,""]
[null,null,null,null,null,null,null,null,null,0,""]
[null,null,null,null,null,null,null,null,null,0,""]
[null,null,null,null,null,null,null,null,null,0,""]
[null,null,null,null,null,null,null,null,null,0,""]
[null,null,null,null,null,null,null,null,null,0,""]
[null,null,null,null,null,null,null,null,null,0,""]
[null,null,null,null,null,null,null,null,null,0,""]
[null,null,null,null,null,null,null,null,null,0,""]
[null,null,null,null,null,null,null,null,null,0,""]
[null,null,null,null,null,null,null,null,null,0,""]
[null,null,null,null,null,null,null,null,null,0,""]
[null,null,null,null,null,null,null,null,null,0,""]
[null,null,null,null,null,null,null,null,null,0,""]
[null,null,null,null,null,null,null,null,null,0,""]
[null,null,null,null,null,null,null,null,null,{"$f":"(I133*$L$2)","v":0},""]
[null,null,null,null,null,null,null,null,null,0,{"$f":"IF(E134=\"\",\"\",IF(MONTH(E134)=12,DATE(YEAR(E134)+1,1,15),DATE(YEAR(E134),MONTH(E134)+1,15)))","v":""}]
[null,null,null,null,null,null,null,null,null,0,""]
[null,null,null,null,null,null,null,null,null,0,""]
[null,null,null,null,null,null,null,null,null,0,""]
[null,null,null,null,null,null,null,null,null,0,""]
[null,null,null,null,null,null,null,null,null,0,""]
[null,null,null,null,null,null,null,null,null,0,""]
[null,null,null,null,null,null,null,null,null,0,""]
[null,null,null,null,null,null,null,null,null,0,""]
[null,null,null,null,null,null,null,null,null,0,""]
[null,null,null,null,null,null,null,null,null,0,""]
[null,null,null,null,null,null,null,null,null,0,""]
[null,null,null,null,null,null,null,null,null,0,""]
[null,null,null,null,null,null,null,null,null,0,""]
[null,null,null,null,null,null,null,null,null,0,""]
[null,null,null,null,null,null,null,null,null,0,""]
[null,null,null,null,null,null,null,null,null,0,"","Commission"]
[null,null,null,null,null,{"$f":"SUM(F5:F150)","v":0},{"$f":"SUM(G5:G150)","v":0},"TOTAUX",{"$f":"SUM(I5:I150)","v":0},{"$f":"SUM(J5:J150)","v":0},{"$f":"SUM(K152:K163)","v":0},{"$f":"SUM(L152:L163)","v":0},{"$f":"I151*0.15","v":0}]
[null,null,null,null,null,"Nbre de personnes","Nbre de NUITEES",null,"Janvier",{"$f":"(SUMPRODUCT((MONTH(K5:K150)=1)*J5:J150))","v":{"$error":"#VALUE!"}},null,null,{"$f":"L152+K152","v":0}]
[null,null,null,null,null,null,null,null,"Fevrier",{"$f":"(SUMPRODUCT((MONTH(K5:K150)=2)*J5:J150))","v":{"$error":"#VALUE!"}},null,null,{"$f":"L153+K153","v":0}]
[null,null,null,null,null,null,null,null,"Mars",{"$f":"(SUMPRODUCT((MONTH(K5:K150)=3)*J5:J150))","v":{"$error":"#VALUE!"}},null,null,{"$f":"L154+K154","v":0}]
[null,null,null,null,null,null,null,null,"Avril",{"$f":"(SUMPRODUCT((MONTH(K5:K150)=4)*J5:J150))","v":{"$error":"#VALUE!"}},null,null,{"$f":"L155+K155","v":0}]
[null,null,null,null,null,null,null,null,"Mai",{"$f":"(SUMPRODUCT((MONTH(K5:K150)=5)*J5:J150))","v":{"$error":"#VALUE!"}},null,null,0]
[null,null,null,null,null,null,null,null,"Juin",{"$f":"(SUMPRODUCT((MONTH(K5:K150)=6)*J5:J150))","v":{"$error":"#VALUE!"}},null,null,0]
[null,null,null,null,null,null,null,null,"Juillet",{"$f":"(SUMPRODUCT((MONTH(K5:K150)=7)*J5:J150))","v":{"$error":"#VALUE!"}},null,null,0]
[null,null,null,null,null,null,null,null,"Aout",{"$f":"(SUMPRODUCT((MONTH(K5:K150)=8)*J5:J150))","v":{"$error":"#VALUE!"}},null,null,0]
[null,null,null,null,null,null,null,null,"Septembre",{"$f":"(SUMPRODUCT((MONTH(K5:K150)=9)*J5:J150))","v":{"$error":"#VALUE!"}},null,null,0]
[null,null,null,null,null,null,null,null,"Octobre",{"$f":"(SUMPRODUCT((MONTH(K5:K150)=10)*J5:J150))","v":{"$error":"#VALUE!"}},null,null,0]
[null,null,null,null,null,null,null,null,"Novembre",{"$f":"(SUMPRODUCT((MONTH(K5:K150)=11)*J5:J150))","v":{"$error":"#VALUE!"}},null,null,0]
[null,null,null,null,null,null,null,null,"Décembre",{"$f":"(SUMPRODUCT((MONTH(K5:K150)=12)*J5:J150))","v":{"$error":"#VALUE!"}},null,null,0]

{"sheet":"2019","index":1,"n_rows":163,"n_cols":13,"rows_kept":163,"cut":false,"hidden":false,"merged":[[149,11,149,12],[1,13,1,15],[1,2,1,10],[2,2,3,2],[2,3,2,4],[2,5,3,5],[2,6,3,6],[2,7,3,7],[2,8,3,8],[2,9,3,9],[2,10,3,10]]}
[]
[null,null,"BOOKING",null,null,null,null,null,null,null,null,0.85,0.4]
[null,null,"Nom","Dates",null,"Nbre de personnes","Nbre de NUITEES","Chambre","Prix Booking","REMUNERATION","DATE MAXI VIREMENT"]
[null,null,null,"Arrivée","Départ"]
[null,null,null,null,null,null,null,null,null,{"$f":"(I5*$L$2)","v":0},{"$f":"IF(E5=\"\",\"\",IF(MONTH(E5)=12,DATE(YEAR(E5)+1,1,15),DATE(YEAR(E5),MONTH(E5)+1,15)))","v":""}]
[null,null,null,null,null,null,null,null,null,{"$f":"(I6*$L$2)","v":0},{"$f":"IF(E6=\"\",\"\",IF(MONTH(E6)=12,DATE(YEAR(E6)+1,1,15),DATE(YEAR(E6),MONTH(E6)+1,15)))","v":""}]
[null,null,null,null,null,null,null,null,null,0,""]
[null,null,null,null,null,null,null,null,null,0,""]
[null,null,null,null,null,null,null,null,null,0,""]
[null,null,null,null,null,null,null,null,null,0,""]
[null,null,null,null,null,null,null,null,null,0,""]
[null,null,null,null,null,null,null,null,null,0,""]
[null,null,null,null,null,null,null,null,null,0,""]
[null,null,null,null,null,null,null,null,null,0,""]
[null,null,null,null,null,null,null,null,null,0,""]
[null,null,null,null,null,null,null,null,null,0,""]
[null,null,null,null,null,null,null,null,null,0,""]
[null,null,null,null,null,null,null,null,null,0,""]
[null,null,null,null,null,null,null,null,null,0,""]
[null,null,null,null,null,null,null,null,null,0,""]
[null,null,null,null,null,null,null,null,null,0,""]
[null,null,null,null,null,null,null,null,null,0,""]
[null,null,null,null,null,null,null,null,null,0,""]
[null,null,null,null,null,null,null,null,null,0,""]
[null,null,null,null,null,null,null,null,null,0,""]
[null,null,null,null,null,null,null,null,null,0,""]
[null,null,null,null,null,null,null,null,null,0,""]
[null,null,null,null,null,null,null,null,null,0,""]
[null,null,null,null,null,null,null,null,null,0,""]
[null,null,null,null,null,null,null,null,null,0,""]
[null,null,null,null,null,null,null,null,null,0,""]
[null,null,null,null,null,null,null,null,null,0,""]
[null,null,null,null,null,null,null,null,null,0,""]
[null,null,null,null,null,null,null,null,null,0,""]
[null,null,null,null,null,null,null,null,null,0,""]
[null,null,null,null,null,null,null,null,null,0,""]
[null,null,null,null,null,null,null,null,null,0,""]
[null,null,null,null,null,null,null,null,null,0,""]
[null,null,null,null,null,null,null,null,null,0,""]
[null,null,null,null,null,null,null,null,null,0,""]
[null,null,null,null,null,null,null,null,null,0,""]
[null,null,null,null,null,null,null,null,null,0,""]
[null,null,null,null,null,null,null,null,null,0,""]
[null,null,null,null,null,null,null,null,null,0,""]
[null,null,null,null,null,null,null,null,null,0,""]
[null,null,null,null,null,null,null,null,null,0,""]
[null,null,null,null,null,null,null,null,null,0,""]
[null,null,null,null,null,null,null,null,null,0,""]
[null,null,null,null,null,null,null,null,null,0,""]
[null,null,null,null,null,null,null,null,null,0,""]
[null,null,null,null,null,null,null,null,null,0,""]
[null,null,null,null,null,null,null,null,null,0,""]
[null,null,null,null,null,null,null,null,null,0,""]
[null,null,null,null,null,null,null,null,null,0,""]
[null,null,null,null,null,null,null,null,null,0,""]
[null,null,null,null,null,null,null,null,null,0,""]
[null,null,null,null,null,null,null,null,null,0,""]
[null,null,null,null,null,null,null,null,null,0,""]
[null,null,null,null,null,null,null,null,null,0,""]
[null,null,null,null,null,null,null,null,null,0,""]
[null,null,null,null,null,null,null,null,null,0,""]
[null,null,null,null,null,null,null,null,null,0,""]
[null,null,null,null,null,null,null,null,null,0,""]
[null,null,null,null,null,null,null,null,null,0,""]
[null,null,null,null,null,null,null,null,null,0,""]
[null,null,null,null,null,null,null,null,null,0,""]
[null,null,null,null,null,null,null,null,null,0,""]
[null,null,null,null,null,null,null,null,null,0,""]
[null,null,null,null,null,null,null,null,null,{"$f":"(I69*$L$2)","v":0},""]
[null,null,null,null,null,null,null,null,null,0,{"$f":"IF(E70=\"\",\"\",IF(MONTH(E70)=12,DATE(YEAR(E70)+1,1,15),DATE(YEAR(E70),MONTH(E70)+1,15)))","v":""}]
[null,null,null,null,null,null,null,null,null,0,""]
[null,null,null,null,null,null,null,null,null,0,""]
[null,null,null,null,null,null,null,null,null,0,""]
[null,null,null,null,null,null,null,null,null,0,""]
[null,null,null,null,null,null,null,null,null,0,""]
[null,null,null,null,null,null,null,null,null,0,""]
[null,null,null,null,null,null,null,null,null,0,""]
[null,null,null,null,null,null,null,null,null,0,""]
[null,null,null,null,null,null,null,null,null,0,""]
[null,null,null,null,null,null,null,null,null,0,""]
[null,null,null,null,null,null,null,null,null,0,""]
[null,null,null,null,null,null,null,null,null,0,""]
[null,null,null,null,null,null,null,null,null,0,""]
[null,null,null,null,null,null,null,null,null,0,""]
[null,null,null,null,null,null,null,null,null,0,""]
[null,null,null,null,null,null,null,null,null,0,""]
[null,null,null,null,null,null,null,null,null,0,""]
[null,null,null,null,null,null,null,null,null,0,""]
[null,null,null,null,null,null,null,null,null,0,""]
[null,null,null,null,null,null,null,null,null,0,""]
[null,null,null,null,null,null,null,null,null,0,""]
[null,null,null,null,null,null,null,null,null,0,""]
[null,null,null,null,null,null,null,null,null,0,""]
[null,null,null,null,null,null,null,null,null,0,""]
[null,null,null,null,null,null,null,null,null,0,""]
[null,null,null,null,null,null,null,null,null,0,""]
[null,null,null,null,null,null,null,null,null,0,""]
[null,null,null,null,null,null,null,null,null,0,""]
[null,null,null,null,null,null,null,null,null,0,""]
[null,null,null,null,null,null,null,null,null,0,""]
[null,null,null,null,null,null,null,null,null,0,""]
[null,null,null,null,null,null,null,null,null,0,""]
[null,null,null,null,null,null,null,null,null,0,""]
[null,null,null,null,null,null,null,null,null,0,""]
[null,null,null,null,null,null,null,null,null,0,""]
[null,null,null,null,null,null,null,null,null,0,""]
[null,null,null,null,null,null,null,null,null,0,""]
[null,null,null,null,null,null,null,null,null,0,""]
[null,null,null,null,null,null,null,null,null,0,""]
[null,null,null,null,null,null,null,null,null,0,""]
[null,null,null,null,null,null,null,null,null,0,""]
[null,null,null,null,null,null,null,null,null,0,""]
[null,null,null,null,null,null,null,null,null,0,""]
[null,null,null,null,null,null,null,null,null,0,""]
[null,null,null,null,null,null,null,null,null,0,""]
[null,null,null,null,null,null,null,null,null,0,""]
[null,null,null,null,null,null,null,null,null,0,""]
[null,null,null,null,null,null,null,null,null,0,""]
[null,null,null,null,null,null,null,null,null,0,""]
[null,null,null,null,null,null,null,null,null,0,""]
[null,null,null,null,null,null,null,null,null,0,""]
[null,null,null,null,null,null,null,null,null,0,""]
[null,null,null,null,null,null,null,null,null,0,""]
[null,null,null,null,null,null,null,null,null,0,""]
[null,null,null,null,null,null,null,null,null,0,""]
[null,null,null,null,null,null,null,null,null,0,""]
[null,null,null,null,null,null,null,null,null,0,""]
[null,null,null,null,null,null,null,null,null,0,""]
[null,null,null,null,null,null,null,null,null,0,""]
[null,null,null,null,null,null,null,null,null,0,""]
[null,null,null,null,null,null,null,null,null,0,""]
[null,null,null,null,null,null,null,null,null,0,""]
[null,null,null,null,null,null,null,null,null,{"$f":"(I133*$L$2)","v":0},""]
[null,null,null,null,null,null,null,null,null,0,{"$f":"IF(E134=\"\",\"\",IF(MONTH(E134)=12,DATE(YEAR(E134)+1,1,15),DATE(YEAR(E134),MONTH(E134)+1,15)))","v":""}]
[null,null,null,null,null,null,null,null,null,0,""]
[null,null,null,null,null,null,null,null,null,0,""]
[null,null,null,null,null,null,null,null,null,0,""]
[null,null,null,null,null,null,null,null,null,0,""]
[null,null,null,null,null,null,null,null,null,0,""]
[null,null,null,null,null,null,null,null,null,0,""]
[null,null,null,null,null,null,null,null,null,0,""]
[null,null,null,null,null,null,null,null,null,0,""]
[null,null,null,null,null,null,null,null,null,0,""]
[null,null,null,null,null,null,null,null,null,0,""]
[null,null,null,null,null,null,null,null,null,0,""]
[null,null,null,null,null,null,null,null,null,0,""]
[null,null,null,null,null,null,null,null,null,0,""]
[null,null,null,null,null,null,null,null,null,0,""]
[null,null,null,null,null,null,null,null,null,0,""]
[null,null,null,null,null,null,null,null,null,0,"","Commission"]
[null,null,null,null,null,{"$f":"SUM(F5:F150)","v":0},{"$f":"SUM(G5:G150)","v":0},"TOTAUX",{"$f":"SUM(I5:I150)","v":0},{"$f":"SUM(J5:J150)","v":0},{"$f":"SUM(K152:K163)","v":0},{"$f":"SUM(L152:L163)","v":0},{"$f":"I151*0.15","v":0}]
[null,null,null,null,null,"Nbre de personnes","Nbre de NUITEES",null,"Janvier",{"$f":"(SUMPRODUCT((MONTH(K5:K150)=1)*J5:J150)+'2018'!J163)","v":{"$error":"#VALUE!"}},null,null,{"$f":"L152+K152","v":0}]
[null,null,null,null,null,null,null,null,"Fevrier",{"$f":"(SUMPRODUCT((MONTH(K5:K150)=2)*J5:J150))","v":{"$error":"#VALUE!"}},null,null,{"$f":"L153+K153","v":0}]
[null,null,null,null,null,null,null,null,"Mars",{"$f":"(SUMPRODUCT((MONTH(K5:K150)=3)*J5:J150))","v":{"$error":"#VALUE!"}},null,null,{"$f":"L154+K154","v":0}]
[null,null,null,null,null,null,null,null,"Avril",{"$f":"(SUMPRODUCT((MONTH(K5:K150)=4)*J5:J150))","v":{"$error":"#VALUE!"}},null,null,{"$f":"L155+K155","v":0}]
[null,null,null,null,null,null,null,null,"Mai",{"$f":"(SUMPRODUCT((MONTH(K5:K150)=5)*J5:J150))","v":{"$error":"#VALUE!"}},null,null,0]
[null,null,null,null,null,null,null,null,"Juin",{"$f":"(SUMPRODUCT((MONTH(K5:K150)=6)*J5:J150))","v":{"$error":"#VALUE!"}},null,null,0]
[null,null,null,null,null,null,null,null,"Juillet",{"$f":"(SUMPRODUCT((MONTH(K5:K150)=7)*J5:J150))","v":{"$error":"#VALUE!"}},null,null,0]
[null,null,null,null,null,null,null,null,"Aout",{"$f":"(SUMPRODUCT((MONTH(K5:K150)=8)*J5:J150))","v":{"$error":"#VALUE!"}},null,null,0]
[null,null,null,null,null,null,null,null,"Septembre",{"$f":"(SUMPRODUCT((MONTH(K5:K150)=9)*J5:J150))","v":{"$error":"#VALUE!"}},null,null,0]
[null,null,null,null,null,null,null,null,"Octobre",{"$f":"(SUMPRODUCT((MONTH(K5:K150)=10)*J5:J150))","v":{"$error":"#VALUE!"}},null,null,0]
[null,null,null,null,null,null,null,null,"Novembre",{"$f":"(SUMPRODUCT((MONTH(K5:K150)=11)*J5:J150))","v":{"$error":"#VALUE!"}},null,null,0]
[null,null,null,null,null,null,null,null,"Décembre",{"$f":"(SUMPRODUCT((MONTH(K5:K150)=12)*J5:J150))","v":{"$error":"#VALUE!"}},null,null,0]